fUST/lending_fUST_20241018
["ID","MTS","AMOUNT","RATE_DAILY","PERIOD"]
[340430000,1729234667593,273.37336231,9.9e-05,2]
[340430001,1729234675822,273.37336231,9.9e-05,2]
[340430002,1729234684539,273.37336231,9.9e-05,2]
[340430003,1729234692856,273.37336231,9.9e-05,2]
[340430004,1729234701032,273.37336231,9.9e-05,2]
[340430005,1729234708945,273.37336231,9.9e-05,2]
[340430006,1729234717392,273.37336231,9.9e-05,2]
[340430007,1729234725770,273.37336231,9.9e-05,2]
[340430008,1729234734371,273.37336231,9.9e-05,2]
[340430010,1729234742528,273.37336231,9.9e-05,2]
[340430011,1729234752651,273.37336231,9.9e-05,2]
[340430012,1729234761014,273.37336231,9.9e-05,2]
[340430013,1729234769026,273.37336231,9.9e-05,2]
[340430014,1729234776926,273.37336231,9.9e-05,2]
[340430015,1729234785065,273.37336231,9.9e-05,2]
[340430016,1729234793469,273.37336231,9.9e-05,2]
[340430017,1729234801610,273.37336231,9.9e-05,2]
[340430019,1729234809574,273.37336231,9.9e-05,2]
[340430020,1729234817732,273.37336231,9.9e-05,2]
[340430021,1729234825740,273.37336231,9.9e-05,2]
[340430022,1729234833764,273.37336231,9.9e-05,2]
[340430023,1729234841618,273.37336231,9.9e-05,2]
[340430024,1729234850055,273.37336231,9.9e-05,2]
[340430025,1729234857907,273.37336231,9.9e-05,2]
[340430026,1729234867105,273.37336231,9.9e-05,2]
[340430028,1729234875170,273.37336231,9.9e-05,2]
[340430029,1729234883325,273.37336231,9.9e-05,2]
[340430032,1729234891473,273.37336231,9.9e-05,2]
[340430038,1729234899598,273.37336231,9.9e-05,2]
[340430039,1729234908021,273.37336231,9.9e-05,2]
[340430040,1729234916757,5000.0,0.00010001,2]
[340430041,1729234925855,5000.0,0.00010001,2]
[340430043,1729234933983,5000.0,0.00010001,2]
[340430044,1729234941825,5000.0,0.00010001,2]
[340430045,1729234950144,5000.0,0.00010001,2]
[340430046,1729234957806,5000.0,0.00011,2]
[340430047,1729234966609,5000.0,0.00011,2]
[340430048,1729234974530,5000.0,0.00011,2]
[340430049,1729234982436,5000.0,0.00011,2]
[340430050,1729234990582,4984.3289734,0.00011,2]
[340430051,1729234998988,5000.0,0.00011,2]
[340430052,1729235015426,2548.58964637,0.00011,2]
[340430061,1729235385169,181.43699714,0.00011,2]
[340430062,1729235385203,65018.41290184,0.00011,2]
[340430274,1729236632580,-300.0,0.00012042,2]
[340430275,1729236632589,-300.0,0.00012042,2]
[340430276,1729236632599,-14171.77969433,0.00012043,2]
[340430325,1729236638990,-5746.7887794,0.00012043,2]
[340430453,1729236640203,-75.02529175,0.00012043,2]
[340430505,1729236641335,-4906.40623452,0.00012043,2]
[340430506,1729236641345,-3000.0,0.00012223,2]
[340430507,1729236641354,-220.112747,0.00012416,2]
[340430508,1729236641364,-220.112747,0.0001245,2]
[340430509,1729236641373,-220.112747,0.00012484,2]
[340430510,1729236641383,-220.112747,0.00012518,2]
[340430511,1729236641392,-220.112747,0.00012553,2]
[340430512,1729236641402,-220.112747,0.00012587,2]
[340430513,1729236641411,-204.83031052,0.00012621,2]
[340430514,1729236641421,-220.112747,0.00012621,2]
[340430515,1729236641430,-220.112747,0.00012655,2]
[340430516,1729236641440,-220.112747,0.00012689,2]
[340430517,1729236641449,-220.112747,0.00012723,2]
[340430518,1729236641459,-220.112747,0.00012757,2]
[340430519,1729236641470,-220.112747,0.00012791,2]
[340430520,1729236641479,-220.112747,0.00012825,2]
[340430521,1729236641489,-220.112747,0.00012859,2]
[340430522,1729236641499,-220.112747,0.00012893,2]
[340430523,1729236641509,-2051.94461837,0.000129,2]
[340430524,1729236641519,-220.112747,0.00012927,2]
[340430525,1729236641528,-220.112747,0.00012961,2]
[340430526,1729236641537,-220.112747,0.00012995,2]
[340430527,1729236641547,-1000.0,0.00013,6]
[340430528,1729236641556,-220.112747,0.00013029,2]
[340430529,1729236641566,-220.112747,0.00013063,2]
[340430530,1729236641577,-465.48858222,0.00013107,2]
[340430531,1729236641588,-420.0,0.00013219,2]
[340430532,1729236641598,-420.0,0.00013246,2]
[340430533,1729236641607,-626.5801306,0.000133,2]
[340430534,1729236641617,-160.0,0.0001347,3]
[340430535,1729236641626,-151.0,0.000135,2]
[340430536,1729236641635,-1748.88379844,0.000135,3]
[340430537,1729236641645,-5141.11040257,0.00013561,2]
[340430538,1729236641654,-1000.0,0.00013578,2]
[340430539,1729236641665,-160.0,0.00013579,4]
[340430540,1729236641674,-20873.8129341,0.0001358,2]
[340430541,1729236641685,-2354.36291014,0.0001358,2]
[340430542,1729236641694,-41747.6258683,0.0001359,2]
[340430543,1729236641704,-4708.72582028,0.0001359,2]
[340430544,1729236641713,-550.78818136,0.00013598,2]
[340430545,1729236641723,-31234.69838066,0.000136,2]
[340430557,1729236643631,-175.71202741,0.00012123,2]
[340430558,1729236643642,-1824.28797259,0.000136,2]
[340430571,1729236646475,-557.062233,0.000136,2]
[340430575,1729236884734,880.2,8.2e-07,60]
[340430607,1729237832677,-204.5991054,0.00011715,2]
[340430609,1729237832690,-164.594887,0.00012528,2]
[340430611,1729237832701,-142.22319975,0.00013,6]
[340430613,1729237832744,-857.77680025,0.00013,6]
[340430615,1729237832756,-470.26636342,0.00013075,2]
[340430618,1729237832767,-164.594887,0.00013181,2]
[340430619,1729237832779,-501.2641046,0.000133,2]
[340430620,1729237832791,-175.71202739,0.00013489,2]
[340430621,1729237832802,-495.70936317,0.00013558,2]
[340430622,1729237832813,-611.06222256,0.00013562,2]
[340430623,1729237832824,-300.0,0.00013588,2]
[340430624,1729237832835,-300.0,0.00013588,2]
[340430625,1729237832845,-507.51361674,0.00013588,2]
[340430626,1729237832857,-2047.55204509,0.00013589,2]
[340430627,1729237832872,-939.02922564,0.00013589,2]
[340430628,1729237832885,-931.38397546,0.00013589,2]
[340430796,1729237840663,-1795.45154103,0.0001349,2]
[340430797,1729237840674,-15598.44546291,0.00013589,2]
[340430798,1729237840684,-53460.8549384,0.00013589,2]
[340430799,1729237840693,-19516.4107091,0.0001359,2]
[340430800,1729237840702,-53460.8549384,0.0001359,2]
[340430801,1729237840711,-51613.21423446,0.00013599,2]
[340430802,1729237840721,-12634.41743323,0.000136,2]
[340431090,1729239039759,-151.0,0.0001232,2]
[340431091,1729239039769,-300.0,0.00012523,2]
[340431092,1729239039780,-300.0,0.00012523,2]
[340431093,1729239039790,-12453.0678036,0.00012524,2]
[340431094,1729239039799,-1000.0,0.00013,7]
[340431095,1729239039811,-500.0,0.000133,2]
[340431096,1729239039820,-1571.02009841,0.000135,2]
[340431097,1729239039830,-160.0,0.00013524,3]
[340431098,1729239039840,-446.13842688,0.00013538,2]
[340431099,1729239039849,-3116.70823958,0.00013599,2]
[340431100,1729239039858,-481.53626181,0.000136,2]
[340431101,1729239039868,-46086.90101124,0.000136,2]
[340431102,1729239039877,-150.0,0.000136,2]
[340431103,1729239039886,-50406.2468438,0.00013618,2]
[340431104,1729239039896,-249.703031,0.00013618,2]
[340431105,1729239039906,-249.703031,0.00013618,2]
[340431106,1729239039916,-27319.9530711,0.00013618,2]
[340431107,1729239039925,-74280.67108617,0.00013618,2]
[340431117,1729239042957,-15102.22494193,0.00013618,2]
[340431124,1729239045910,-249.703031,0.00013618,2]
[340431125,1729239045920,-249.703031,0.00013618,2]
[340431126,1729239045930,-11429.5976599,0.00013618,2]
[340431127,1729239045941,-50406.2468438,0.00013622,2]
[340431128,1729239045951,-151.0,0.00013622,2]
[340431129,1729239045961,-163.040584,0.00013622,2]
[340431130,1729239045970,-163.040584,0.00013622,2]
[340431131,1729239045981,-156.981252,0.00013622,2]
[340431132,1729239045991,-212.613572,0.00013622,2]
[340431133,1729239046002,-212.613572,0.00013622,2]
[340431134,1729239046013,-151.0,0.00013622,2]
[340431135,1729239046024,-963.31774,0.00013622,2]
[340431136,1729239046034,-153.67108,0.00013622,2]
[340431137,1729239046045,-151.0,0.00013622,2]
[340431138,1729239046054,-963.31774,0.00013622,2]
[340431139,1729239046063,-151.0,0.00013622,2]
[340431140,1729239046072,-388.559123,0.00013622,2]
[340431141,1729239046083,-388.559123,0.00013622,2]
[340431142,1729239046092,-2387.028234,0.00013622,2]
[340431143,1729239046101,-2387.028234,0.00013622,2]
[340431144,1729239046113,-151.0,0.00013622,2]
[340431145,1729239046125,-3377.209272,0.00013622,2]
[340431146,1729239046135,-151.0,0.00013622,2]
[340431147,1729239046145,-151.0,0.00013622,2]
[340431148,1729239046155,-3377.209272,0.00013622,2]
[340431149,1729239046165,-972.35513,0.00013622,2]
[340431150,1729239046175,-972.35513,0.00013622,2]
[340431151,1729239046185,-612.568858,0.00013622,2]
[340431152,1729239046194,-612.568858,0.00013622,2]
[340431153,1729239046204,-249.703031,0.00013622,2]
[340431154,1729239046213,-93.43315984,0.00013622,2]
[340431184,1729239742712,-719.58,0.00010959,2]
[340431185,1729239742745,-599.65,0.00010959,2]
[340431186,1729239742776,-499.7,0.00010959,2]
[340431187,1729239792755,-416.42,0.00010959,2]
[340431188,1729239792788,-347.02,0.00010959,2]
[340431189,1729239792821,-289.18,0.00010959,2]
[340431191,1729239812162,-240.98,0.00010959,2]
[340431192,1729239812199,-200.82,0.00010959,2]
[340431193,1729239829169,-167.35,0.00010959,2]
[340431194,1729239829205,-836.78,0.00010959,2]
[340431196,1729239990114,-166.6258137,0.00012609,2]
[340431205,1729240120782,17492.73848636,0.0001,2]
[340431447,1729240238144,-171.403827,0.00011591,2]
[340431448,1729240238155,-171.403827,0.00012195,2]
[340431449,1729240238166,-95.70960247,0.000123,2]
[340431487,1729240240047,-118.21783165,0.000123,2]
[340431488,1729240240057,-232.98298295,0.000124,2]
[340431489,1729240240067,-300.0,0.00012499,2]
[340431490,1729240240076,-1836.2991854,0.000125,2]
[340431715,1729241361197,-1006.33092189,0.00010859,2]
[340431817,1729241440217,-1703.81239471,0.00010859,2]
[340431818,1729241440227,-184.29,0.00010959,2]
[340431819,1729241440237,-300.0,0.00011169,2]
[340431820,1729241440247,-300.0,0.00011169,2]
[340431821,1729241440257,-750.99760529,0.0001117,2]
[340431841,1729241444394,-528.81019487,0.0001117,2]
[340436453,1729242102473,29674.07166381,0.0001,2]
[340436823,1729242643491,-267.01,0.00011354,2]
[340436824,1729242643572,-32.99,0.00011354,2]
[340436825,1729242643582,-6.06134505,0.00011354,2]
[340436829,1729242646577,-293.93865495,0.00011354,2]
[340436830,1729242646587,-12236.76822149,0.00011355,2]
[340436831,1729242646633,-3329.3029787,0.00011355,2]
[340436852,1729243038272,50000.00000008,0.0001,2]
[340436854,1729243225798,21770.14,0.0001,3]
[340436873,1729243663466,3000.0,9.965e-05,2]
[340436889,1729243764360,-101791.57805524,0.00021,60]
[340436890,1729243764469,-200.0,0.00024,120]
[340436891,1729243764517,-162.267828,0.000243,120]
[340436892,1729243764564,-813.0,0.00024658,120]
[340436893,1729243764642,-300.0,0.00027,120]
[340436907,1729243781892,160.7142874,9.992e-05,2]
[340436947,1729243832651,-500.0,0.00010616,2]
[340436948,1729243832661,-300.0,0.00010758,2]
[340436949,1729243832673,-13386.43883369,0.00010759,2]
[340436950,1729243832684,-169.71180971,0.00010759,2]
[340436951,1729243832695,-201.98842544,0.00010782,2]
[340436952,1729243832704,-175.71202739,0.00010882,2]
[340436953,1729243832714,-151.0,0.0001095,2]
[340436954,1729243832724,-354.43,0.00010959,2]
[340436955,1729243832734,-6704.0,0.00010982,2]
[340436956,1729243832744,-646.10145067,0.00011002,2]
[340436957,1729243832753,-500.0,0.00011002,2]
[340436958,1729243832764,-3170.5574314,0.00011002,2]
[340436959,1729243832773,-151.0,0.00011002,2]
[340436960,1729243832783,-151.0,0.00011002,2]
[340436961,1729243832792,-151.0,0.00011002,2]
[340436962,1729243832802,-151.0,0.00011002,2]
[340436963,1729243832812,-151.0,0.00011002,2]
[340436964,1729243832822,-187.35438,0.00011002,2]
[340436965,1729243832833,-187.35438,0.00011002,2]
[340436966,1729243832843,-324.917588,0.00011002,2]
[340436967,1729243832854,-324.917588,0.00011002,2]
[340436968,1729243832864,-293.106556,0.00011002,2]
[340436969,1729243832874,-3039.488345,0.00011002,2]
[340436970,1729243832884,-3039.488345,0.00011002,2]
[340436971,1729243832895,-875.119617,0.00011002,2]
[340436972,1729243832905,-875.119617,0.00011002,2]
[340436973,1729243832916,-151.0,0.00011002,2]
[340436974,1729243832926,-151.0,0.00011002,2]
[340436975,1729243832935,-882.085966,0.00011002,2]
[340436976,1729243832945,-882.085966,0.00011002,2]
[340436977,1729243832955,-882.085966,0.00011002,2]
[340436978,1729243832965,-882.085966,0.00011002,2]
[340436979,1729243832974,-206.452215,0.00011002,2]
[340436980,1729243832985,-206.452215,0.00011002,2]
[340436981,1729243832994,-206.452215,0.00011002,2]
[340436982,1729243833004,-206.452215,0.00011002,2]
[340436983,1729243833014,-207.66918,0.00011011,2]
[340436984,1729243833023,-151.0,0.00011011,2]
[340436985,1729243833034,-186.862937,0.00011011,2]
[340436986,1729243833044,-151.0,0.00011011,2]
[340436987,1729243833054,-186.862937,0.00011011,2]
[340436988,1729243833065,-151.0,0.00011011,2]
[340436989,1729243833074,-151.0,0.00011011,2]
[340436990,1729243833084,-551.311972,0.00011011,2]
[340436991,1729243833093,-551.311972,0.00011011,2]
[340436992,1729243833103,-151.0,0.00011011,2]
[340436993,1729243833113,-151.0,0.00011011,2]
[340436994,1729243833123,-151.0,0.00011011,2]
[340436995,1729243833132,-187.35438,0.00011011,2]
[340436996,1729243833142,-1980.609023,0.00011011,2]
[340436997,1729243833152,-187.35438,0.00011011,2]
[340436998,1729243833162,-1980.609023,0.00011011,2]
[340436999,1729243833175,-151.0,0.00011011,2]
[340437000,1729243833185,-151.0,0.00011011,2]
[340437001,1729243833196,-324.917588,0.00011011,2]
[340437002,1729243833205,-324.917588,0.00011011,2]
[340437003,1729243833215,-2076.6184,0.00011011,2]
[340437004,1729243833225,-2076.6184,0.00011011,2]
[340437005,1729243833240,-151.0,0.00011011,2]
[340437006,1729243833249,-151.0,0.00011011,2]
[340437007,1729243833259,-151.0,0.00011011,2]
[340437008,1729243833269,-151.0,0.00011011,2]
[340437009,1729243833279,-3039.488345,0.00011011,2]
[340437010,1729243833289,-3039.488345,0.00011011,2]
[340437011,1729243833299,-875.119617,0.00011011,2]
[340437012,1729243833310,-875.119617,0.00011011,2]
[340437013,1729243833320,-151.0,0.00011011,2]
[340437014,1729243833330,-151.0,0.00011011,2]
[340437015,1729243833340,-151.0,0.00011011,2]
[340437016,1729243833349,-242.362264,0.00011011,2]
[340437017,1729243833359,-882.085966,0.00011011,2]
[340437018,1729243833368,-882.085966,0.00011011,2]
[340437019,1729243833378,-882.085966,0.00011011,2]
[340437020,1729243833387,-619.92870785,0.00011011,2]
[340437045,1729243838968,-262.15725815,0.00011011,2]
[340437046,1729243838978,-882.085966,0.00011011,2]
[340437047,1729243838987,-406.8867782,0.00011011,2]
[340437093,1729243840573,-427.63664462,0.00011011,2]
[340437187,1729243998266,-250.0,0.0001002,2]
[340437188,1729243998294,-2083.6112462,0.00010144,2]
[340437189,1729243998321,-2189.94509883,0.00010911,2]
[340437190,1729243998347,-300.0,0.0001101,2]
[340437191,1729243998375,-300.0,0.0001101,2]
[340437192,1729243998403,-47.56254318,0.00011011,2]
[340437193,1729243998432,-882.085966,0.00011011,2]
[340437194,1729243998458,-882.085966,0.00011011,2]
[340437195,1729243998484,-151.0,0.00011011,2]
[340437196,1729243998509,-151.0,0.00011011,2]
[340437197,1729243998535,-206.452215,0.00011011,2]
[340437198,1729243998561,-206.452215,0.00011011,2]
[340437199,1729243998590,-206.452215,0.00011011,2]
[340437200,1729243998614,-206.452215,0.00011011,2]
[340437201,1729243998639,-151.0,0.00011011,2]
[340437202,1729243998664,-151.0,0.00011011,2]
[340437203,1729243998690,-206.452215,0.00011011,2]
[340437204,1729243998714,-206.452215,0.00011011,2]
[340437205,1729243998739,-206.452215,0.00011011,2]
[340437206,1729243998766,-206.452215,0.00011011,2]
[340437207,1729243998791,-633.669936,0.00011011,2]
[340437208,1729243998819,-633.669936,0.00011011,2]
[340437209,1729243998845,-633.669936,0.00011011,2]
[340437210,1729243998871,-633.669936,0.00011011,2]
[340437211,1729243998896,-1896.096845,0.00011011,2]
[340437212,1729243998921,-1896.096845,0.00011011,2]
[340437213,1729243998948,-1896.096845,0.00011011,2]
[340437214,1729243998974,-1896.096845,0.00011011,2]
[340437215,1729243998999,-1896.096845,0.00011011,2]
[340437216,1729243999024,-1896.096845,0.00011011,2]
[340437217,1729243999048,-349.703211,0.00011011,2]
[340437218,1729243999075,-349.703211,0.00011011,2]
[340437219,1729243999099,-349.703211,0.00011011,2]
[340437220,1729243999124,-349.703211,0.00011011,2]
[340437221,1729243999150,-349.703211,0.00011011,2]
[340437222,1729243999178,-349.703211,0.00011011,2]
[340437223,1729243999204,-639.960558,0.00011011,2]
[340437224,1729243999229,-639.960558,0.00011011,2]
[340437225,1729243999254,-151.0,0.00011011,2]
[340437226,1729243999279,-151.0,0.00011011,2]
[340437227,1729243999308,-151.0,0.00011011,2]
[340437228,1729243999557,-151.0,0.00011011,2]
[340437229,1729243999585,-151.0,0.00011011,2]
[340437230,1729243999611,-151.0,0.00011011,2]
[340437231,1729243999637,-639.960558,0.00011011,2]
[340437232,1729243999662,-639.960558,0.00011011,2]
[340437233,1729243999688,-153.819166,0.00011011,2]
[340437234,1729243999713,-153.819166,0.00011011,2]
[340437235,1729243999739,-153.819166,0.00011011,2]
[340437236,1729243999766,-153.819166,0.00011011,2]
[340437237,1729243999791,-153.819166,0.00011011,2]
[340437238,1729243999815,-153.819166,0.00011011,2]
[340437239,1729243999842,-535.989125,0.00011011,2]
[340437240,1729243999867,-535.989125,0.00011011,2]
[340437241,1729243999893,-535.989125,0.00011011,2]
[340437242,1729243999917,-535.989125,0.00011011,2]
[340437243,1729243999946,-535.989125,0.00011011,2]
[340437244,1729243999975,-535.989125,0.00011011,2]
[340437245,1729244000001,-182.605615,0.00011011,2]
[340437246,1729244000027,-182.605615,0.00011011,2]
[340437247,1729244000052,-182.605615,0.00011011,2]
[340437248,1729244000076,-182.605615,0.00011011,2]
[340437249,1729244000103,-182.605615,0.00011011,2]
[340437250,1729244000128,-182.605615,0.00011011,2]
[340437251,1729244000154,-415.944639,0.00011011,2]
[340437252,1729244000178,-415.944639,0.00011011,2]
[340437253,1729244000202,-415.944639,0.00011011,2]
[340437254,1729244000227,-415.944639,0.00011011,2]
[340437255,1729244000252,-415.944639,0.00011011,2]
[340437256,1729244000281,-415.944639,0.00011011,2]
[340437257,1729244000316,-817.81210314,0.00011065,2]
[340437258,1729244000342,-151.0,0.00011146,2]
[340437259,1729244000369,-151.0,0.00011146,2]
[340437260,1729244000394,-151.0,0.00011146,2]
[340437261,1729244000419,-882.085966,0.00011146,2]
[340437262,1729244000443,-882.085966,0.00011146,2]
[340437263,1729244000468,-151.0,0.00011146,2]
[340437264,1729244000493,-206.452215,0.00011146,2]
[340437265,1729244000518,-151.0,0.00011146,2]
[340437266,1729244000543,-206.452215,0.00011146,2]
[340437267,1729244000569,-633.669936,0.00011146,2]
[340437268,1729244000595,-633.669936,0.00011146,2]
[340437269,1729244000625,-639.960558,0.00011146,2]
[340437270,1729244000650,-639.960558,0.00011146,2]
[340437271,1729244000676,-151.0,0.00011165,2]
[340437272,1729244000700,-151.0,0.00011165,2]
[340437273,1729244000725,-151.0,0.00011165,2]
[340437274,1729244000752,-151.0,0.00011165,2]
[340437275,1729244000776,-151.0,0.00011165,2]
[340437276,1729244000800,-151.0,0.00011165,2]
[340437277,1729244000826,-167.938303,0.00011165,2]
[340437278,1729244000851,-167.938303,0.00011165,2]
[340437279,1729244000876,-186.862937,0.00011165,2]
[340437280,1729244000901,-186.862937,0.00011165,2]
[340437281,1729244000926,-186.862937,0.00011165,2]
[340437282,1729244000951,-186.862937,0.00011165,2]
[340437283,1729244000977,-551.311972,0.00011165,2]
[340437284,1729244001009,-551.311972,0.00011165,2]
[340437285,1729244001034,-551.311972,0.00011165,2]
[340437286,1729244001060,-551.311972,0.00011165,2]
[340437287,1729244001087,-151.0,0.00011165,2]
[340437288,1729244001111,-151.0,0.00011165,2]
[340437289,1729244001136,-151.0,0.00011165,2]
[340437290,1729244001160,-151.0,0.00011165,2]
[340437291,1729244001184,-151.0,0.00011165,2]
[340437292,1729244001208,-151.0,0.00011165,2]
[340437293,1729244001232,-151.0,0.00011165,2]
[340437294,1729244001256,-151.0,0.00011165,2]
[340437295,1729244001281,-151.0,0.00011165,2]
[340437296,1729244001308,-151.0,0.00011165,2]
[340437297,1729244001334,-151.0,0.00011165,2]
[340437298,1729244001357,-205.168636,0.00011165,2]
[340437299,1729244001385,-151.0,0.00011165,2]
[340437300,1729244001410,-151.0,0.00011165,2]
[340437301,1729244001435,-151.0,0.00011165,2]
[340437302,1729244001460,-151.0,0.00011165,2]
[340437303,1729244001485,-151.0,0.00011165,2]
[340437304,1729244001510,-151.0,0.00011165,2]
[340437305,1729244001535,-187.35438,0.00011165,2]
[340437306,1729244001561,-187.35438,0.00011165,2]
[340437307,1729244001586,-187.35438,0.00011165,2]
[340437308,1729244001611,-187.35438,0.00011165,2]
[340437309,1729244001636,-187.35438,0.00011165,2]
[340437310,1729244001660,-187.35438,0.00011165,2]
[340437311,1729244001685,-1980.609023,0.00011165,2]
[340437312,1729244001710,-1980.609023,0.00011165,2]
[340437313,1729244001735,-187.35438,0.00011165,2]
[340437314,1729244001942,-187.35438,0.00011165,2]
[340437315,1729244001968,-187.35438,0.00011165,2]
[340437316,1729244001994,-187.35438,0.00011165,2]
[340437317,1729244002018,-187.35438,0.00011165,2]
[340437318,1729244002047,-1980.609023,0.00011165,2]
[340437319,1729244002073,-187.35438,0.00011165,2]
[340437320,1729244002098,-1980.609023,0.00011165,2]
[340437321,1729244002123,-151.0,0.00011165,2]
[340437322,1729244002148,-324.917588,0.00011165,2]
[340437323,1729244002173,-324.917588,0.00011165,2]
[340437324,1729244002198,-324.917588,0.00011165,2]
[340437325,1729244002222,-324.917588,0.00011165,2]
[340437326,1729244002247,-324.917588,0.00011165,2]
[340437327,1729244002271,-324.917588,0.00011165,2]
[340437328,1729244002300,-324.917588,0.00011165,2]
[340437329,1729244002327,-324.917588,0.00011165,2]
[340437330,1729244002351,-324.917588,0.00011165,2]
[340437331,1729244002382,-324.917588,0.00011165,2]
[340437332,1729244002407,-324.917588,0.00011165,2]
[340437333,1729244002431,-324.917588,0.00011165,2]
[340437334,1729244002458,-2076.6184,0.00011165,2]
[340437335,1729244002485,-2076.6184,0.00011165,2]
[340437336,1729244002511,-2076.6184,0.00011165,2]
[340437337,1729244002536,-2076.6184,0.00011165,2]
[340437338,1729244002562,-151.0,0.00011165,2]
[340437339,1729244002590,-151.0,0.00011165,2]
[340437340,1729244002613,-151.0,0.00011165,2]
[340437341,1729244002637,-151.0,0.00011165,2]
[340437342,1729244002661,-151.0,0.00011165,2]
[340437343,1729244002686,-151.0,0.00011165,2]
[340437344,1729244002710,-151.0,0.00011165,2]
[340437345,1729244002735,-151.0,0.00011165,2]
[340437346,1729244002759,-151.0,0.00011165,2]
[340437347,1729244002784,-223.555936,0.00011165,2]
[340437348,1729244002809,-3039.488345,0.00011165,2]
[340437349,1729244002837,-3039.488345,0.00011165,2]
[340437350,1729244002860,-3039.488345,0.00011165,2]
[340437351,1729244002885,-3039.488345,0.00011165,2]
[340437352,1729244002910,-3039.488345,0.00011165,2]
[340437353,1729244002935,-3039.488345,0.00011165,2]
[340437354,1729244002962,-3039.488345,0.00011165,2]
[340437355,1729244002986,-3039.488345,0.00011165,2]
[340437356,1729244003012,-1914.08754265,0.00011165,2]
[340437671,1729244377079,494.0,0.00027,60]
[340437681,1729244731586,-1000000.0,0.00037122,120]
[340437683,1729244771096,-287356.64034638,0.00037122,120]
[340437684,1729244771134,-575.0,0.00037122,120]
[340437685,1729244771169,-159.54990531,0.00037122,120]
[340437686,1729244771205,-200721.6623488,0.00037122,120]
[340437687,1729244771241,-1000.0,0.00037122,120]
[340437688,1729244771279,-257.68535448,0.00037122,120]
[340437689,1729244771314,-240.82074905,0.00037122,120]
[340437690,1729244771350,-296.65635719,0.00037122,120]
[340437691,1729244771387,-178.15832597,0.00037122,120]
[340437692,1729244771426,-496.36264518,0.00037122,120]
[340437693,1729244771463,-1000.0,0.00037122,120]
[340437694,1729244771501,-2813.22434946,0.00037122,120]
[340437696,1729244771540,-1820.7828001,0.00037122,120]
[340437697,1729244771579,-217.41618833,0.00037122,120]
[340437698,1729244771616,-6321.0495206,0.00037122,120]
[340437699,1729244771655,-674.09624679,0.00037122,120]
[340437700,1729244771694,-873.54831455,0.00037122,120]
[340437701,1729244771734,-4369.61612994,0.00037122,90]
[340437702,1729244771774,-165.66229817,0.00037122,120]
[340437703,1729244771817,-340.7988069,0.00037122,120]
[340437704,1729244771855,-21270.38434382,0.00037122,60]
[340437705,1729244771893,-1000.0,0.00037122,60]
[340437706,1729244771931,-1000.0,0.00037122,60]
[340437707,1729244771967,-1000.0,0.00037122,90]
[340437708,1729244772004,-1000.0,0.00037122,90]
[340437709,1729244772039,-1047.89516046,0.00037122,120]
[340437710,1729244772076,-906.66429023,0.00037122,120]
[340437711,1729244772112,-1028.88573895,0.00037122,120]
[340437712,1729244772150,-200.0,0.00037122,120]
[340437713,1729244772188,-3141.37551058,0.00037122,120]
[340437714,1729244772225,-355.5,0.00037122,60]
[340437715,1729244772263,-355.5,0.00037122,90]
[340437716,1729244772305,-355.5,0.00037122,120]
[340437717,1729244772342,-21298.52642022,0.00037122,60]
[340437718,1729244772379,-325.7890998,0.00037122,120]
[340437719,1729244772415,-153.15715537,0.00037122,120]
[340437720,1729244772452,-1024.5150072,0.00037122,120]
[340437721,1729244772487,-20000.0,0.00037122,90]
[340437722,1729244772523,-20000.0,0.00037122,90]
[340437723,1729244772562,-10000.0,0.00037122,90]
[340437724,1729244772599,-4020.80933296,0.00037122,90]